[Event "Hungarian Championship Women 2022"]
[Site "Budapest"]
[Date "2022.12.12"]
[Round "8.1"]
[White "Terbe, Zsuzsanna"]
[Black "Havanecz, Bianka"]
[Result "1-0"]
[ECO "A35"]
[WhiteElo "2114"]
[BlackElo "2210"]
[Annotator "TA"]
[PlyCount "195"]
[EventDate "2022.12.03"]
[EventType "tourn"]
[EventCountry "HUN"]
[SourceTitle "playchess.com"]
[Source "ChessBase"]
[SourceQuality "1"]
[TimeControl "40/5400+30:1800+30"]

{[%evp 13,195,22,72,83,72,86,102,102,102,98,98,98,106,79,102,97,95,97,117,118,128,118,147,108,119,114,112,105,116,89,101,109,206,207,193,171,179,164,254,268,311,280,293,285,348,340,325,310,366,368,360,360,354,263,303,307,358,226,235,195,197,197,231,219,225,227,233,222,223,223,224,224,224,224,231,225,235,234,243,233,239,228,236,226,270,263,247,195,195,195,332,334,533,533,533,533,533,533,533,533,533,533,533,533,533,533,533,533,533,533,533,526,533,526,533,526,526,526,526,526,526,526,526,526,526,526,526,526,526,518,518,518,518,518,518,518,518,518,495,472,518,0,518,518,518,518,511,511,504,504,504,504,497,497,487,489,458,389,1180,1158,1087,1061,997,950,906,897,29948,11999,29976,1418,29976,29978,29978,29977,29975,29976,29976,29977,29977,29973,29972,29973,4930,1508]} 1. c4 {[%emt 0:00:31]} c5 {[%emt 0:02:29]} 2. Nc3 {[%emt 0:01:26]} Nc6 {[%emt 0:00:06]} 3. Nf3 {[%emt 0:00:08]} g6 {[%emt 0:00:22]} 4. e3 {[%emt 0:00:06][%cal Be2e3,Be3d4,Bd4d5][%mdl 32]} Bg7 {[%emt 0:00:10]} 5. d4 {[%emt 0:00:08]} cxd4 {[%emt 0:00:51]} 6. exd4 {[%emt 0:00:08]} d6 {[%emt 0:00:29]} 7. Be2 {[%emt 0:03:21]} Nf6 {[%emt 0:00:11]} (7... e6 $11) 8. d5 $16 {[%emt 0:00:33] A35: Symmetrical English: 2 Nc3 Nc6 3 Nf3.} Nb8 {[%emt 0:01:26]} 9. Nd4 {[%emt 0:00:34]} Nbd7 {[%emt 0:01:47]} 10. Be3 {[%emt 0:02:15] White is better.} O-O {[%emt 0:03:17]} 11. O-O {[%emt 0:00:11] White is much more active. The black rooks are badly placed.} a6 {[%emt 0:00:53]} 12. h3 {[%emt 0:00:44]} Nc5 {[%emt 0:03:23]} 13. Bf3 {[%emt 0:05:23] [#]} Rb8 $146 {[%emt 0:10:36]} ({Predecessor:} 13... Bd7 14. b4 e5 15. bxc5 exd4 16. Bxd4 Rc8 17. cxd6 Rxc4 18. Be2 Rc8 19. Rc1 Bf5 {1-0 (28) Schott,D-Trautz,R DESC email 2010}) 14. Re1 {[%emt 0:09:27]} Re8 {[%emt 0:00:41]} 15. Qd2 {[%emt 0:05:22]} Qc7 {[%emt 0:03:36]} 16. Rac1 {[%emt 0:02:00]} Ncd7 {[%emt 0:04:19][%cal Od7e5]} 17. b3 {[%emt 0:01:38][%cal Bb2b3,Bb3b4][%mdl 32]} Nf8 {[%emt 0:00:58]} 18. Be2 {[%emt 0:09:12]} Qa5 {[%emt 0:06:18]} 19. Nc2 {[%emt 0:13:52]} Bd7 {[%emt 0:10:32]} 20. b4 {[%emt 0:01:42] Inhibits e6.} Qd8 {[%emt 0:00:21]} 21. Nd4 {[%emt 0:01:52][%cal Bc2d4,Bd4b3,Bb3c5][%mdl 32]} Rc8 {[%emt 0:01:33] Prevents c5.} 22. Nb3 {[%emt 0:02:44]} b6 {[%emt 0:17:14]} (22... e6 $16) 23. c5 $18 {[%emt 0:04:04]} bxc5 {[%emt 0:00:42]} 24. bxc5 {[%emt 0:00:06]} dxc5 {[%emt 0:01:42]} 25. Bxa6 {[%emt 0:02:03]} ({Don't play} 25. Nxc5 $6 Qa5 $16) 25... Ra8 {[%emt 0:02:18]} (25... Rb8 $142 26. Nxc5 (26. Bxc5 Rxb3 27. axb3 Qa5 $11) 26... Qa5) 26. Nxc5 {[%emt 0:00:58]} Bc8 {[%emt 0:05:28]} 27. Bb5 {[%emt 0:02:23]} Bd7 {[%emt 0:03:38]} 28. Nxd7 {[%emt 0:00:37]} N6xd7 {[%emt 0:00:21]} 29. a4 {[%emt 0:00:24]} Qa5 {[%emt 0:08:01]} 30. Bd4 {[%emt 0:02:05] This pair of bishops is nice.} Rac8 {[%emt 0:04:06]} 31. Bxg7 {[%emt 0:02:22]} Kxg7 {[%emt 0:00:05]} 32. Qd4+ {[%emt 0:00:09]} Kg8 {[%emt 0:00:04]} 33. Ne4 {[%emt 0:00:12] Against Rc5} Red8 {[%emt 0:00:52]} 34. Red1 {[%emt 0:03:43]} Nb6 {[%emt 0:05:22]} 35. Rxc8 {[%emt 0:01:28]} Nxc8 {[%emt 0:00:07]} 36. Qc3 {[%emt 0:01:34]} Qxc3 {[%emt 0:02:19]} 37. Nxc3 {[%emt 0:00:04]} Nd7 {[%emt 0:00:08]} 38. a5 {[%emt 0:01:10]} Nc5 {[%emt 0:00:32]} 39. Ra1 {[%emt 0:04:03]} Na7 {[%emt 0:00:34]} 40. a6 {[%emt 0:00:00]} Nxb5 {[%emt 0:00:00]} 41. Nxb5 {[%emt 0:03:11] [#] aiming for a7.} Nxa6 {[%emt 0:02:00]} 42. Rxa6 {[%emt 0:00:12]} Rxd5 {[%emt 0:00:05][%mdl 4096] Endgame KRN-KR} 43. Nc3 {[%emt 0:02:18]} Rd7 {[%emt 0:01:06]} 44. Ne4 {[%emt 0:01:29]} Kg7 {[%emt 0:00:30]} 45. g4 {[%emt 0:01:11]} h6 {[%emt 0:00:54]} 46. Kg2 {[%emt 0:00:07]} Rb7 {[%emt 0:00:12]} 47. Ng3 {[%emt 0:01:01]} Rc7 {[%emt 0:01:22]} 48. Ne2 {[%emt 0:01:16]} Rd7 {[%emt 0:00:55]} 49. Nf4 {[%emt 0:00:12]} Rb7 {[%emt 0:00:24]} 50. Kg3 {[%emt 0:01:07]} Rb3+ {[%emt 0:01:00] [#]} 51. f3 $1 {[%emt 0:00:07]} Rb7 {[%emt 0:00:05] Against Ra7} (51... e5 {was necessary.}) 52. h4 {[%emt 0:01:10][%cal Bh3h4,Bh4h5][%mdl 32]} Rd7 {[%emt 0:00:24]} (52... g5 {might work better.} 53. Nh3 Rb5) 53. h5 {[%emt 0:00:13]} g5 {[%emt 0:00:16]} 54. Ng2 {[%emt 0:01:06]} e6 {[%emt 0:01:08]} 55. Ne3 {[%emt 0:00:07]} Rc7 {[%emt 0:00:56]} 56. Rb6 {[%emt 0:00:57]} Rc3 {[%emt 0:00:36]} 57. Kf2 {[%emt 0:00:50]} Rc7 {[%emt 0:00:08]} 58. Ke2 {[%emt 0:00:47]} Ra7 {[%emt 0:01:08]} 59. Nc2 {[%emt 0:00:51]} Rc7 {[%emt 0:02:54]} 60. Kd3 {[%emt 0:00:39]} Rd7+ {[%emt 0:00:25]} 61. Ke3 {[%emt 0:00:45]} Rc7 {[%emt 0:00:52]} 62. Nd4 {[%emt 0:00:18][%cal Ob6e6] And now Rxe6! would win.} Ra7 {[%emt 0:05:21]} 63. Nc6 {[%emt 0:03:42]} Rd7 {[%emt 0:03:17]} 64. Ke4 {[%emt 0:00:23]} Kf6 {[%emt 0:03:36]} 65. Rb8 {[%emt 0:02:32]} Rc7 {[%emt 0:02:38]} 66. Ne5 {[%emt 0:00:20]} Ra7 {[%emt 0:00:34]} 67. Rb4 {[%emt 0:00:39] Against Ra4} Rc7 {[%emt 0:00:46]} 68. Rd4 {[%emt 0:01:03] Black must now prevent Rd7.} Ra7 {[%emt 0:00:40]} 69. Nd7+ {[%emt 0:00:49]} Ke7 {[%emt 0:03:32]} 70. Nb6 {[%emt 0:01:41]} Rb7 {[%emt 0:00:59]} 71. Rb4 {[%emt 0:02:31] Intending Nc8+ and mate.} Rc7 {[%emt 0:00:31] Inhibits Nc8+.} 72. Rc4 {[%emt 0:00:25]} Rb7 {[%emt 0:00:21]} 73. Rc6 {[%emt 0:00:28]} Kf6 {[%emt 0:00:54]} 74. Rd6 {[%emt 0:01:19]} Ke7 {[%emt 0:01:00]} 75. Nc4 {[%emt 0:01:57]} Rc7 {[%emt 0:00:27]} 76. Rd4 {[%emt 0:00:07]} Kf6 {[%emt 0:03:10]} 77. Ne5 $2 {[%emt 0:01:50]} ({White should play} 77. Nb2 $18 Rb7 78. Nc4) 77... Rb7 $2 {[%emt 0:00:14][%mdl 8192]} (77... Ra7 $1 $11 {and Black has nothing to worry.} 78. Nd7+ Kg7) 78. Nd3 {[%emt 0:02:44]} Rc7 {[%emt 0:00:51]} 79. Rd8 {[%emt 0:00:12]} Rc4+ {[%emt 0:00:28]} 80. Ke3 {[%emt 0:00:11]} Rc7 {[%emt 0:00:05]} 81. Nf2 {[%emt 0:01:16]} Kg7 {[%emt 0:00:29]} 82. Ne4 {[%emt 0:00:11]} Ra7 {[%emt 0:00:26]} 83. Nc5 {[%emt 0:01:25]} Ra3+ {[%emt 0:02:40]} 84. Rd3 {[%emt 0:04:05]} Ra5 {[%emt 0:00:15]} 85. Nb7 {[%emt 0:00:06]} Rb5 $2 {[%emt 0:01:27]} (85... Ra7 86. Nc5 Rc7) 86. Rd7 {[%emt 0:00:17]} Rb3+ {[%emt 0:00:18]} 87. Kf2 {[%emt 0:00:23]} Kg8 {[%emt 0:01:38]} 88. Nd8 {[%emt 0:00:31]} f5 {[%emt 0:00:16]} 89. Nxe6 {[%emt 0:00:11]} fxg4 {[%emt 0:00:06]} 90. fxg4 {[%emt 0:00:05] Threatening mate with Rg7+.} Rb6 {[%emt 0:00:16]} 91. Rg7+ {[%emt 0:02:33]} Kh8 {[%emt 0:00:06]} 92. Rg6 {[%emt 0:00:16]} Rb2+ {[%emt 0:00:41]} 93. Kf3 {[%emt 0:00:11]} Kh7 {[%emt 0:00:05]} 94. Nd4 {[%emt 0:00:34]} Ra2 {[%emt 0:00:21]} 95. Nf5 {[%emt 0:01:51]} Ra3+ {[%emt 0:00:08]} 96. Ke2 {[%emt 0:00:15]} Ra2+ {[%emt 0:00:08]} 97. Kd3 {[%emt 0:00:13]} Ra3+ {[%emt 0:00:08]} 98. Ke4 {Weighted Error Value: White=0.13 (very precise) /Black=0.21 (precise)} 1-0

[Event "Hungarian Championship Women 2022"]
[Site "Budapest"]
[Date "2022.12.12"]
[Round "8.2"]
[White "Demeter, Dorina"]
[Black "Dudas, Eszter"]
[Result "0-1"]
[ECO "D35"]
[WhiteElo "2149"]
[BlackElo "2135"]
[Annotator "TA"]
[PlyCount "66"]
[EventDate "2022.12.03"]
[EventType "tourn"]
[EventCountry "HUN"]
[SourceTitle "playchess.com"]
[Source "ChessBase"]
[SourceQuality "1"]
[TimeControl "40/5400+30:1800+30"]

{[%evp 13,66,18,20,14,18,16,25,22,18,7,14,14,17,21,22,8,31,-25,-19,-35,-8,-40,0,0,56,0,0,6,84,79,84,85,70,36,38,4,11,11,11,-168,0,-335,-337,-470,-459,-420,-394,-839,-820,-1246,-1229,-1700,-1691,-1910,-1880]} 1. d4 {[%emt 0:00:36]} d5 {[%emt 0:00:40]} 2. c4 {[%emt 0:00:21]} e6 {[%emt 0:00:31]} 3. Nc3 {[%emt 0:00:18]} Nf6 {[%emt 0:01:00]} 4. cxd5 {[%emt 0:00:31]} exd5 {[%emt 0:00:05]} 5. Bg5 {[%emt 0:00:10]} c6 {[%emt 0:00:46]} 6. e3 {[%emt 0:02:52]} Bd6 {[%emt 0:04:29]} 7. Bd3 O-O 8. Qc2 {[%emt 0:04:24][%cal Od3h7] With the idea Bxh7+! D35: Queen's Gambit Declined: Exchange Variation.} h6 {[%emt 0:00:41]} 9. Bh4 Re8 {[%emt 0:00:30]} 10. Nge2 {[%emt 0:02:10] White has an edge.} a5 11. h3 {[%emt 0:05:02]} Na6 {[%emt 0:00:50]} 12. a3 {[%emt 0:01:48] Prevents Nb4.} Nc7 {[%emt 0:00:34]} 13. O-O {[%emt 0:03:30]} Ne6 {[%emt 0:02:42]} 14. f3 {[%emt 0:02:27]} Ng5 {[%emt 0:03:32]} 15. Bxg5 {[%emt 0:17:51]} (15. f4 $14 Ne6 16. Ng3) 15... hxg5 $11 {[%emt 0:00:11]} 16. e4 {[%emt 0:00:04]} Bf4 {[%emt 0:26:50] [#]} 17. Nxf4 $146 {[%emt 0:08:15]} (17. e5 {keeps more tension.} Nh5 18. Nxf4 gxf4 19. Qd2) ({Predecessor:} 17. e5 Nh5 18. Nd1 Qb6 19. Kh1 Re6 20. Bh7+ Kh8 21. Bf5 Rh6 22. Bxc8 Rxc8 23. Nf2 {1-0 (36) Quispe Arteaga,G (2392)-Serrano Almendros,A (2071) Salobrena 2021}) 17... gxf4 {[%emt 0:00:07]} (17... dxe4 $5 {[%cal Rd8d4]} 18. Nfe2 exd3 19. Qxd3 Be6 $11) 18. Qf2 {[%emt 0:00:50]} Nh5 {[%emt 0:01:46]} ({Black should try} 18... g6 $11) 19. Rfe1 {[%emt 0:03:19]} (19. exd5 $14 cxd5 20. Rfe1) 19... Be6 {[%emt 0:02:09]} 20. exd5 {[%emt 0:05:08]} cxd5 {[%emt 0:02:12]} (20... Bxd5 $11 {keeps the balance.} 21. Rxe8+ Qxe8) 21. Re5 $16 {[%emt 0:01:36]} g6 {[%emt 0:02:26]} 22. Rae1 {[%emt 0:01:30][%cal Od3g6] Threatens to win with Bxg6!} Ng7 {[%emt 0:05:45]} 23. Qd2 {[%emt 0:14:47]} (23. Bb5 {simplifies} Rf8 24. Qd2 Qh4 25. Nxd5 Bxd5 26. Rxd5 Rfd8 27. Rde5) 23... Qh4 {[%emt 0:00:31]} 24. Nb5 {[%emt 0:03:21] And now Nc7 would win.} (24. Nxd5 $2 {perishes.} Bxd5 25. Rxe8+ Nxe8 $19) 24... Rec8 {[%emt 0:07:16][%cal Be8c8,Bc8c7,Bc7c6,Bc6b6][%mdl 32] Prevents Nc7.} 25. Nd6 {[%emt 0:04:01]} Rc7 {[%emt 0:00:46]} 26. Qe2 $2 {[%emt 0:02:12] [#]} (26. Bb1 $11) 26... Qg3 $2 {[%emt 0:03:15]} (26... Rc6 $1 $19 {[%cal Rc6d6]} 27. Nxb7 f6) 27. h4 $2 {[%emt 0:02:12][%mdl 8192] [#]} (27. Nb5 $11 {and White stays safe.} Rc6 28. Qd2) 27... Rc6 $1 $19 {[%emt 0:03:28]} 28. Nxb7 {[%emt 0:01:06]} f6 {[%emt 0:00:36]} 29. Bb5 {[%emt 0:08:07]} Rb6 {[%emt 0:00:57] Chess con chili.} 30. Rc1 $2 {[%emt 0:05:49]} (30. Rxe6 Rxe6 31. Qxe6+ Nxe6 32. Rxe6) 30... fxe5 {[%emt 0:02:29] Black is clearly winning.} 31. Rc7 {[%emt 0:00:05]} e4 {[%emt 0:08:34] ...exf3 is the strong threat.} 32. fxe4 {[%emt 0:01:25]} f3 {[%emt 0:00:09]} 33. Qxf3 {[%emt 0:00:39]} Qxc7 {[%emt 0:00:30] Weighted Error Value: White=1.17/Black=0.16 (very precise)} 0-1

[Event "Hungarian Championship Women 2022"]
[Site "Budapest"]
[Date "2022.12.12"]
[Round "8.3"]
[White "Karacsonyi, Kata"]
[Black "Ivan-Gal, Hanna Krisztina"]
[Result "1/2-1/2"]
[ECO "B41"]
[WhiteElo "2109"]
[BlackElo "2164"]
[Annotator "TA"]
[PlyCount "117"]
[EventDate "2022.12.03"]
[EventType "tourn"]
[EventCountry "HUN"]
[SourceTitle "playchess.com"]
[Source "ChessBase"]
[SourceQuality "1"]
[TimeControl "40/5400+30:1800+30"]

{[%evp 14,117,37,44,43,41,43,41,45,39,27,42,24,0,0,0,0,0,0,0,0,0,0,0,0,0,50,48,54,43,78,0,68,76,66,32,62,12,65,69,139,45,45,45,47,54,62,62,62,63,98,91,92,97,98,0,38,0,88,79,133,137,158,77,98,60,85,57,87,29,58,57,195,178,211,188,254,67,29,0,0,0,0,0,0,0,0,0,0,0,0,0,0,0,0,0,0,0,0,0,0,0,0,0,0,0]} 1. e4 {[%emt 0:00:33]} c5 {[%emt 0:00:38]} 2. Nf3 {[%emt 0:00:08]} e6 {[%emt 0:00:08]} 3. d4 {[%emt 0:00:09]} cxd4 {[%emt 0:00:11]} 4. Nxd4 {[%emt 0:00:06]} a6 {[%emt 0:00:13]} 5. c4 {[%emt 0:00:15]} Nf6 {[%emt 0:00:17]} 6. Nc3 {[%emt 0:00:08]} Qc7 {[%emt 0:00:15]} 7. Be2 {[%emt 0:00:22]} Bb4 {[%emt 0:00:24]} 8. Nc2 {[%emt 0:00:34]} Bxc3+ {[%emt 0:00:30] B41: Sicilian: Kan Variation: 5 c4.} 9. bxc3 {[%emt 0:00:03]} d6 {[%emt 0:00:12]} 10. Ba3 {[%emt 0:00:26]} Nxe4 {[%emt 0:00:48] White is slightly better.} 11. Qd4 {[%emt 0:00:14][%csl LRe4,LRg7]} f5 {[%emt 0:00:18]} 12. Bh5+ {[%emt 0:00:10]} Kf8 $1 {[%emt 0:00:07]} 13. O-O-O {[%emt 0:14:55][%cal Ba1d1,Bd1d6,Bd6d4,Bd4e4][%mdl 32]} (13. Rd1 $5 {[%cal Rf2f3]} Nc6 14. Qxe4 $1 (14. Bxd6+ Nxd6 15. Qxd6+ Qxd6 $15) 14... fxe4 15. Bxd6+ Qxd6 16. Rxd6 $11) 13... Nc6 {[%emt 0:00:44] Inhibits f3.} 14. Qe3 {[%emt 0:24:43]} Na5 {[%emt 0:01:06] [#]} 15. Qxe4 $146 {[%emt 0:04:27][%mdl 64] Remove Defender} ({Predecessor:} 15. Be2 Kf7 16. f3 Nc5 17. Rxd6 Qxd6 18. Bxc5 f4 19. Bxd6 fxe3 20. Bc7 Nc6 21. Nxe3 {½-½ (55) Ivic,V (2531)-Sprenger,J (2492) Ulcinj 2019}) 15... fxe4 {[%emt 0:00:05]} 16. Bxd6+ {[%emt 0:00:05]} Qxd6 {[%emt 0:00:05]} 17. Rxd6 {[%emt 0:00:05]} Ke7 {[%emt 0:00:06] Prevents Rd8.} 18. Rd4 $36 {[%emt 0:01:13][%mdl 2048] White is pushing.} Rf8 {[%emt 0:00:16]} 19. Rf1 {[%emt 0:04:05]} Bd7 {[%emt 0:02:34]} (19... b6 $1 $11) 20. Be2 $14 {[%emt 0:04:06]} Bc6 {[%emt 0:09:59]} 21. Nb4 $1 {[%emt 0:02:09]} Rac8 {[%emt 0:02:13]} 22. g3 {[%emt 0:13:52] Prevents Rf4. White is more active.} ({White should try} 22. Nxc6+ $16 Rxc6 23. Rxe4) 22... Be8 {[%emt 0:11:34]} (22... Rf5 $11) 23. Rxe4 {[%emt 0:02:06]} Bg6 {[%emt 0:00:09]} 24. Rd4 {[%emt 0:02:52]} Rc7 {[%emt 0:07:46]} 25. h4 {[%emt 0:06:15]} (25. f4 $14) 25... Rfc8 {[%emt 0:05:58]} (25... Rc5 $11) 26. Re1 $1 {[%emt 0:02:35]} Rd8 {[%emt 0:21:27]} (26... Kf8 $14) 27. Red1 {[%emt 0:05:26]} ({White should play} 27. Bf1 $16) 27... Rxd4 {[%emt 0:00:52]} 28. Rxd4 {[%emt 0:00:09]} Rc5 {[%emt 0:05:02]} 29. f4 {[%emt 0:03:59]} h5 {[%emt 0:02:59]} 30. Kd2 {[%emt 0:01:54]} Rc7 {[%emt 0:04:14]} 31. Bd3 {[%emt 0:00:54]} Bxd3 {[%emt 0:00:35]} 32. Kxd3 {[%emt 0:00:06][%mdl 4096] Endgame KRN-KRN} Rc5 {[%emt 0:00:45]} 33. Re4 {[%emt 0:01:02]} Kf6 {[%emt 0:00:44]} 34. Rd4 {[%emt 0:01:59]} (34. Nc2 $16) 34... Ke7 {[%emt 0:00:37]} 35. Re4 {[%emt 0:00:04]} (35. Nc2 $14) 35... Kf6 $1 $16 {[%emt 0:00:16]} 36. Nc2 {[%emt 0:00:44]} Nc6 {[%emt 0:01:01]} ({Better is} 36... Rc8) 37. Nd4 {[%emt 0:04:06]} Nxd4 {[%emt 0:00:17]} 38. Rxd4 {[%emt 0:01:44] KR-KR} ({But not} 38. cxd4 $6 Ra5 $11) (38. Kxd4 $142 Rc8 39. c5) 38... Ke7 {[%emt 0:01:31]} 39. Kc2 {[%emt 0:00:37]} Rc7 {[%emt 0:02:12]} 40. a4 {[%emt 0:00:00]} Kf6 {[%emt 0:00:00]} 41. Kb3 {[%emt 0:14:37]} (41. Re4 $16) 41... a5 {[%emt 0:06:18]} 42. Re4 {[%emt 0:01:43] aiming for Re5.} Rc5 {[%emt 0:00:19] [#] Inhibits Re5.} 43. Kc2 $1 {[%emt 0:01:39]} Kf5 {[%emt 0:02:28]} 44. Kd3 {[%emt 0:00:18]} Kg4 {[%emt 0:00:40]} (44... e5 {was worth a try.} 45. fxe5 Rxe5) 45. Re3 $2 {[%emt 0:03:54]} ({White has to play} 45. Rxe6 $18 {Rg6+ is the strong threat.} Kxg3 46. Rg6+ Kxh4 47. Rxg7) 45... Rc6 $1 $14 {[%emt 0:01:39]} 46. Re5 {[%emt 0:03:01] Hoping for Rg5+.} (46. Kd4 $5 {[%cal Rc4c5]}) 46... Kxg3 {[%emt 0:00:41] The position is equal.} 47. Rxh5 {[%emt 0:00:26]} Kxf4 {[%emt 0:00:53]} 48. Rxa5 {[%emt 0:00:02]} e5 {[%emt 0:00:40][%cal Be6e5,Be5e4][%mdl 32]} 49. Rb5 {[%emt 0:06:47]} e4+ {[%emt 0:01:14]} 50. Kd2 {[%emt 0:01:51]} Rxc4 {[%emt 0:01:04]} 51. Rxb7 {[%emt 0:00:26] Black must now prevent a5.} Rxa4 {[%emt 0:00:22]} 52. Rf7+ {[%emt 0:00:17]} Ke5 {[%emt 0:01:12]} 53. Rxg7 {[%emt 0:01:58]} Ra2+ {[%emt 0:00:25]} 54. Ke3 {[%emt 0:00:08] Strongly threatening Re7+.} Rh2 {[%emt 0:00:19]} 55. Rg5+ {[%emt 0:00:05]} Kf6 {[%emt 0:00:12]} 56. Rg4 {[%emt 0:01:13]} (56. Kxe4 {is a self mate.} Rxh4+ 57. Kd5 Kxg5 58. c4 Kf6 59. c5 Rh2 60. Kd4 Ke6 61. Ke4 Rh4+ 62. Kf3 Rc4 63. Kf2 Ke5 64. Kf3 Rxc5 65. Ke3 Rc3+ 66. Kd2 Kd4 67. Ke2 Ke4 68. Kf2 Re3 69. Kg2 Rf3 70. Kh2 Kf4 71. Kg2 Ke3 72. Kg1 Rf2 73. Kh1 Kf3 74. Kg1 Kg3 75. Kh1 Rf1#) 56... Rh3+ {[%emt 0:00:32]} 57. Kd4 {[%emt 0:00:38]} Rd3+ {[%emt 0:01:14]} 58. Kxe4 {[%emt 0:00:35]} Rxc3 {[%emt 0:00:03]} 59. Rf4+ {[%emt 0:00:20] Weighted Error Value: White=0.21 (precise) /Black=0.14 (very precise)} 1/2-1/2